[Event "Titled Tuesday Blitz February 21 Early 2023"]
[White "Orlov, Georgi"]
[Black "Lerch, Philipp"]
[WhiteFideId "2011271"]
[BlackFideId "4654129"]
[WhiteElo "2453"]
[BlackElo "2305"]
[Result "1-0"]
[Round "05"]
[TimeControl "180+2"]
[Date "2023.02.21"]
[WhiteClock "0:00:13"]
[BlackClock "0:00:02"]

1. e4 {[%clk 0:02:51]}  c6 {[%clk 0:02:56]} 2. Nf3 {[%clk 0:02:51]}  d5 {[%clk 0:02:56]} 3. Nc3 {[%clk 0:02:50]}  Bg4 {[%clk 0:02:55]} 4. h3 {[%clk 0:02:50]}  Bxf3 {[%clk 0:02:54]} 5. Qxf3 {[%clk 0:02:50]}  e6 {[%clk 0:02:55]} 6. d4 {[%clk 0:02:50]}  dxe4 {[%clk 0:02:54]} 7. Qxe4 {[%clk 0:02:48]}  Nf6 {[%clk 0:02:54]} 8. Qh4 {[%clk 0:02:48]}  Be7 {[%clk 0:02:54]} 9. Bd3 {[%clk 0:02:48]}  h6 {[%clk 0:02:39]} 10. Bd2 {[%clk 0:02:45]}  Nbd7 {[%clk 0:02:33]} 11. O-O-O {[%clk 0:02:44]}  Qb6 {[%clk 0:02:25]} 12. Be3 {[%clk 0:02:33]}  Nd5 {[%clk 0:02:19]} 13. Nxd5 {[%clk 0:02:33]}  cxd5 {[%clk 0:02:14]} 14. Qg3 {[%clk 0:02:32]}  Bf6 {[%clk 0:02:09]} 15. c3 {[%clk 0:02:30]}  Qa5 {[%clk 0:02:05]} 16. Kb1 {[%clk 0:02:29]}  b5 {[%clk 0:01:40]} 17. Qd6 {[%clk 0:02:26]}  Be7 {[%clk 0:01:40]} 18. Qc6 {[%clk 0:02:26]}  Rb8 {[%clk 0:01:40]} 19. Bf4 {[%clk 0:02:22]}  Qb6 {[%clk 0:01:25]} 20. Qxb6 {[%clk 0:02:14]}  Rxb6 {[%clk 0:01:26]} 21. Kc2 {[%clk 0:02:08]}  O-O {[%clk 0:01:26]} 22. Kd2 {[%clk 0:02:04]}  Rc8 {[%clk 0:01:26]} 23. Rc1 {[%clk 0:02:04]}  a5 {[%clk 0:01:24]} 24. h4 {[%clk 0:01:55]}  b4 {[%clk 0:01:16]} 25. c4 {[%clk 0:01:50]}  dxc4 {[%clk 0:01:15]} 26. Rxc4 {[%clk 0:01:49]}  Rxc4 {[%clk 0:01:09]} 27. Bxc4 {[%clk 0:01:49]}  Bd6 {[%clk 0:01:10]} 28. Be3 {[%clk 0:01:47]}  Rb8 {[%clk 0:01:05]} 29. Rc1 {[%clk 0:01:34]}  Nf6 {[%clk 0:00:59]} 30. Kd3 {[%clk 0:01:32]}  Kf8 {[%clk 0:00:57]} 31. Bb3 {[%clk 0:01:30]}  Ke7 {[%clk 0:00:57]} 32. Rc6 {[%clk 0:01:30]}  Ra8 {[%clk 0:00:46]} 33. Rb6 {[%clk 0:01:25]}  Bc7 {[%clk 0:00:28]} 34. Rb7 {[%clk 0:01:16]}  Kd7 {[%clk 0:00:27]} 35. Ba4+ {[%clk 0:01:13]}  Kc8 {[%clk 0:00:27]} 36. Rb5 {[%clk 0:01:10]}  Nd5 {[%clk 0:00:25]} 37. g3 {[%clk 0:01:09]}  Nb6 {[%clk 0:00:24]} 38. Bb3 {[%clk 0:01:05]}  Kd7 {[%clk 0:00:21]} 39. a4 {[%clk 0:00:59]}  bxa3 {[%clk 0:00:20]} 40. bxa3 {[%clk 0:00:59]}  a4 {[%clk 0:00:18]} 41. Ba2 {[%clk 0:00:56]}  Nc8 {[%clk 0:00:18]} 42. d5 {[%clk 0:00:55]}  Bd6 {[%clk 0:00:16]} 43. dxe6+ {[%clk 0:00:54]}  fxe6 {[%clk 0:00:17]} 44. Bc1 {[%clk 0:00:49]}  Kc6 {[%clk 0:00:15]} 45. Rb1 {[%clk 0:00:42]}  Bc5 {[%clk 0:00:11]} 46. Ke2 {[%clk 0:00:37]}  Kd6 {[%clk 0:00:10]} 47. Bb2 {[%clk 0:00:37]}  e5 {[%clk 0:00:09]} 48. Rd1+ {[%clk 0:00:36]}  Ke7 {[%clk 0:00:09]} 49. Rd5 {[%clk 0:00:33]}  Bd6 {[%clk 0:00:07]} 50. Rb5 {[%clk 0:00:28]}  Rb8 {[%clk 0:00:07]} 51. Rxb8 {[%clk 0:00:26]}  Bxb8 {[%clk 0:00:08]} 52. Kd3 {[%clk 0:00:25]}  Nb6 {[%clk 0:00:08]} 53. Ke4 {[%clk 0:00:25]}  Bd6 {[%clk 0:00:08]} 54. h5 {[%clk 0:00:23]}  Nd7 {[%clk 0:00:09]} 55. Kf5 {[%clk 0:00:20]}  Nc5 {[%clk 0:00:09]} 56. g4 {[%clk 0:00:19]}  Nd3 {[%clk 0:00:09]} 57. Bc3 {[%clk 0:00:18]}  Bxa3 {[%clk 0:00:08]} 58. f4 {[%clk 0:00:16]}  exf4 {[%clk 0:00:08]} 59. Bxg7 {[%clk 0:00:15]}  f3 {[%clk 0:00:08]} 60. Bc4 {[%clk 0:00:14]}  Nc5 {[%clk 0:00:04]} 61. Bxh6 {[%clk 0:00:14]}  f2 {[%clk 0:00:02]} 62. Be3 {[%clk 0:00:13]} 1-0


[Site "https://www.chess.com"]

[Event "Titled Tuesday Blitz February 21 Early 2023"]
[White "Can, Melih Kaan"]
[Black "Ibadov, Dashgyn"]
[WhiteFideId "6317383"]
[BlackFideId "24107514"]
[WhiteElo "2069"]
[BlackElo "2391"]
[Result "0-1"]
[Round "05"]
[TimeControl "180+2"]
[Date "2023.02.21"]
[WhiteClock "0:00:02"]
[BlackClock "0:00:04"]

1. d4 {[%clk 0:02:53]}  Nf6 {[%clk 0:02:59]} 2. c4 {[%clk 0:02:54]}  c5 {[%clk 0:02:59]} 3. d5 {[%clk 0:02:54]}  d6 {[%clk 0:02:59]} 4. Nc3 {[%clk 0:02:51]}  g6 {[%clk 0:03:00]} 5. e4 {[%clk 0:02:50]}  Bg7 {[%clk 0:03:01]} 6. Be2 {[%clk 0:02:46]}  O-O {[%clk 0:02:59]} 7. Be3 {[%clk 0:02:38]}  e6 {[%clk 0:02:59]} 8. Nf3 {[%clk 0:02:33]}  exd5 {[%clk 0:02:56]} 9. cxd5 {[%clk 0:02:34]}  Re8 {[%clk 0:02:54]} 10. Nd2 {[%clk 0:02:30]}  Na6 {[%clk 0:02:26]} 11. O-O {[%clk 0:02:27]}  Nc7 {[%clk 0:02:26]} 12. a4 {[%clk 0:02:25]}  b6 {[%clk 0:02:26]} 13. Bg5 {[%clk 0:02:07]}  h6 {[%clk 0:02:22]} 14. Bh4 {[%clk 0:02:06]}  Ba6 {[%clk 0:02:17]} 15. Bxa6 {[%clk 0:01:55]}  Nxa6 {[%clk 0:02:18]} 16. Re1 {[%clk 0:01:46]}  Nb4 {[%clk 0:02:16]} 17. Nc4 {[%clk 0:01:45]}  a6 {[%clk 0:00:51]} 18. f4 {[%clk 0:01:39]}  Qc7 {[%clk 0:00:43]} 19. e5 {[%clk 0:01:34]}  dxe5 {[%clk 0:00:39]} 20. fxe5 {[%clk 0:00:48]}  Nh5 {[%clk 0:00:39]} 21. d6 {[%clk 0:00:46]}  Qc6 {[%clk 0:00:37]} 22. Ne4 {[%clk 0:00:30]}  b5 {[%clk 0:00:30]} 23. axb5 {[%clk 0:00:27]}  axb5 {[%clk 0:00:31]} 24. Rxa8 {[%clk 0:00:23]}  Rxa8 {[%clk 0:00:28]} 25. d7 {[%clk 0:00:16]}  bxc4 {[%clk 0:00:24]} 26. d8=Q+ {[%clk 0:00:16]}  Rxd8 {[%clk 0:00:25]} 27. Qxd8+ {[%clk 0:00:16]}  Kh7 {[%clk 0:00:26]} 28. Nf6+ {[%clk 0:00:10]}  Bxf6 {[%clk 0:00:12]} 29. Bxf6 {[%clk 0:00:10]}  Nxf6 {[%clk 0:00:08]} 30. exf6 {[%clk 0:00:10]}  Nd5 {[%clk 0:00:04]} 31. Re8 {[%clk 0:00:07]}  g5 {[%clk 0:00:02]} 32. Rh8+ {[%clk 0:00:03]}  Kg6 {[%clk 0:00:03]} 33. Qg8+ {[%clk 0:00:03]}  Kf5 {[%clk 0:00:03]} 34. Qxf7 {[%clk 0:00:02]}  Nf4 {[%clk 0:00:04]} 0-1


[Site "https://www.chess.com"]

[Event "Titled Tuesday Blitz February 21 Early 2023"]
[White "Sai Han Thiha"]
[Black "Gamage, Wanshini Vidusama"]
[WhiteFideId "13012290"]
[BlackFideId "9953752"]
[WhiteElo "2070"]
[BlackElo "1089"]
[Result "1-0"]
[Round "05"]
[TimeControl "180+2"]
[Date "2023.02.21"]
[WhiteClock "0:00:43"]
[BlackClock "0:00:10"]

1. d4 {[%clk 0:03:00]}  Nf6 {[%clk 0:02:59]} 2. c4 {[%clk 0:03:00]}  g6 {[%clk 0:02:58]} 3. Nc3 {[%clk 0:03:00]}  d5 {[%clk 0:02:57]} 4. Nf3 {[%clk 0:03:00]}  Bg7 {[%clk 0:02:56]} 5. Qb3 {[%clk 0:03:01]}  dxc4 {[%clk 0:02:55]} 6. Qxc4 {[%clk 0:03:02]}  O-O {[%clk 0:02:55]} 7. e4 {[%clk 0:03:02]}  Nc6 {[%clk 0:02:56]} 8. Be2 {[%clk 0:02:59]}  e5 {[%clk 0:02:55]} 9. d5 {[%clk 0:02:59]}  Nd4 {[%clk 0:02:56]} 10. Nxd4 {[%clk 0:02:59]}  exd4 {[%clk 0:02:57]} 11. Qxd4 {[%clk 0:03:00]}  c6 {[%clk 0:02:58]} 12. Qc4 {[%clk 0:02:58]}  b5 {[%clk 0:02:57]} 13. Qxc6 {[%clk 0:02:58]}  Bd7 {[%clk 0:02:58]} 14. Qd6 {[%clk 0:02:58]}  Re8 {[%clk 0:02:58]} 15. O-O {[%clk 0:02:46]}  Nxe4 {[%clk 0:02:30]} 16. Nxe4 {[%clk 0:02:45]}  Rxe4 {[%clk 0:02:31]} 17. Bf3 {[%clk 0:02:41]}  Be5 {[%clk 0:02:09]} 18. Qa3 {[%clk 0:02:20]}  Ra4 {[%clk 0:01:55]} 19. Qe3 {[%clk 0:02:15]}  Bd4 {[%clk 0:01:53]} 20. Qd2 {[%clk 0:01:59]}  Qf6 {[%clk 0:01:36]} 21. Rb1 {[%clk 0:01:52]}  Rxa2 {[%clk 0:01:21]} 22. Rd1 {[%clk 0:01:45]}  Be5 {[%clk 0:01:03]} 23. d6 {[%clk 0:01:33]}  Rc8 {[%clk 0:00:57]} 24. Qd5 {[%clk 0:01:30]}  Be6 {[%clk 0:00:46]} 25. Qb7 {[%clk 0:01:22]}  Rd8 {[%clk 0:00:36]} 26. Qxb5 {[%clk 0:01:13]}  Bf5 {[%clk 0:00:34]} 27. Bg5 {[%clk 0:01:02]}  Bxh2+ {[%clk 0:00:17]} 28. Kxh2 {[%clk 0:00:59]}  Qxg5 {[%clk 0:00:18]} 29. Rbc1 {[%clk 0:00:48]}  Rxb2 {[%clk 0:00:16]} 30. Qxb2 {[%clk 0:00:44]}  Qf4+ {[%clk 0:00:13]} 31. Kg1 {[%clk 0:00:43]}  Rxd6 {[%clk 0:00:10]} 32. Qb8+ {[%clk 0:00:43]} 1-0


[Site "https://www.chess.com"]

[Event "Titled Tuesday Blitz February 21 Early 2023"]
[White "Aarav Dengla"]
[Black "Ciuffoletti, Paolo"]
[WhiteFideId "45059756"]
[BlackFideId "807630"]
[WhiteElo "2343"]
[BlackElo "2106"]
[Result "1-0"]
[Round "05"]
[TimeControl "180+2"]
[Date "2023.02.21"]
[WhiteClock "0:00:23"]
[BlackClock "0:00:02"]

1. e4 {[%clk 0:03:00]}  c5 {[%clk 0:02:59]} 2. Nf3 {[%clk 0:03:00]}  Nc6 {[%clk 0:02:58]} 3. b3 {[%clk 0:02:54]}  d6 {[%clk 0:02:55]} 4. Bb2 {[%clk 0:02:54]}  Nf6 {[%clk 0:02:55]} 5. Nc3 {[%clk 0:02:53]}  g6 {[%clk 0:02:54]} 6. d4 {[%clk 0:02:48]}  cxd4 {[%clk 0:02:52]} 7. Nxd4 {[%clk 0:02:49]}  Bg7 {[%clk 0:02:50]} 8. Bb5 {[%clk 0:02:37]}  Bd7 {[%clk 0:02:35]} 9. Qd2 {[%clk 0:02:10]}  Nxd4 {[%clk 0:02:23]} 10. Qxd4 {[%clk 0:01:27]}  Bxb5 {[%clk 0:01:58]} 11. Nxb5 {[%clk 0:01:16]}  Qa5+ {[%clk 0:01:37]} 12. Nc3 {[%clk 0:01:01]}  Nh5 {[%clk 0:01:18]} 13. Qd2 {[%clk 0:00:57]}  Rc8 {[%clk 0:01:06]} 14. Nd1 {[%clk 0:00:32]}  Qxd2+ {[%clk 0:00:41]} 15. Kxd2 {[%clk 0:00:33]}  Bh6+ {[%clk 0:00:36]} 16. Ke1 {[%clk 0:00:21]}  O-O {[%clk 0:00:33]} 17. c4 {[%clk 0:00:21]}  Nf4 {[%clk 0:00:32]} 18. g3 {[%clk 0:00:21]}  Nd3+ {[%clk 0:00:31]} 19. Ke2 {[%clk 0:00:21]}  Nxb2 {[%clk 0:00:29]} 20. Nxb2 {[%clk 0:00:22]}  Bg7 {[%clk 0:00:27]} 21. Rab1 {[%clk 0:00:22]}  b5 {[%clk 0:00:26]} 22. Kd3 {[%clk 0:00:19]}  Bxb2 {[%clk 0:00:25]} 23. Rxb2 {[%clk 0:00:20]}  bxc4+ {[%clk 0:00:25]} 24. bxc4 {[%clk 0:00:21]}  Rc7 {[%clk 0:00:25]} 25. Rb4 {[%clk 0:00:20]}  Rfc8 {[%clk 0:00:24]} 26. Rhb1 {[%clk 0:00:21]}  a5 {[%clk 0:00:23]} 27. Ra4 {[%clk 0:00:21]}  Rc5 {[%clk 0:00:23]} 28. Rb5 {[%clk 0:00:21]}  Rxb5 {[%clk 0:00:07]} 29. cxb5 {[%clk 0:00:22]}  Ra8 {[%clk 0:00:06]} 30. Kc4 {[%clk 0:00:21]}  Kf8 {[%clk 0:00:06]} 31. b6 {[%clk 0:00:21]}  Ke8 {[%clk 0:00:06]} 32. Kb5 {[%clk 0:00:21]}  Kd7 {[%clk 0:00:05]} 33. b7 {[%clk 0:00:21]}  Rb8 {[%clk 0:00:05]} 34. Kb6 {[%clk 0:00:22]}  e5 {[%clk 0:00:03]} 35. Rxa5 {[%clk 0:00:22]}  f5 {[%clk 0:00:03]} 36. exf5 {[%clk 0:00:22]}  gxf5 {[%clk 0:00:02]} 37. Ra8 {[%clk 0:00:23]} 1-0


[Site "https://www.chess.com"]

[Event "Titled Tuesday Blitz February 21 Early 2023"]
[White "Papayan, Oleg"]
[Black "Mendez Machado, Andre"]
[WhiteFideId "4193911"]
[BlackFideId "6603793"]
[WhiteElo "2253"]
[BlackElo "1974"]
[Result "0-1"]
[Round "05"]
[TimeControl "180+2"]
[Date "2023.02.21"]
[WhiteClock "0:01:20"]
[BlackClock "0:00:32"]

1. e4 {[%clk 0:03:00]}  e5 {[%clk 0:02:57]} 2. Nf3 {[%clk 0:03:00]}  Nc6 {[%clk 0:02:57]} 3. Nc3 {[%clk 0:03:00]}  Nf6 {[%clk 0:02:56]} 4. Bb5 {[%clk 0:02:58]}  Nd4 {[%clk 0:02:56]} 5. O-O {[%clk 0:02:54]}  c6 {[%clk 0:02:50]} 6. Ba4 {[%clk 0:02:47]}  Nxf3+ {[%clk 0:02:26]} 7. Qxf3 {[%clk 0:02:48]}  Bc5 {[%clk 0:02:18]} 8. Qg3 {[%clk 0:02:45]}  Qe7 {[%clk 0:02:10]} 9. Qxg7 {[%clk 0:02:41]}  Rg8 {[%clk 0:02:09]} 10. Qh6 {[%clk 0:02:42]}  Rg6 {[%clk 0:01:51]} 11. Qh4 {[%clk 0:02:29]}  d6 {[%clk 0:01:28]} 12. d3 {[%clk 0:02:14]}  Rg4 {[%clk 0:01:24]} 13. Qh6 {[%clk 0:02:13]}  Rg6 {[%clk 0:01:20]} 14. Qd2 {[%clk 0:02:12]}  Bh3 {[%clk 0:01:14]} 15. g3 {[%clk 0:02:03]}  Bxf1 {[%clk 0:01:14]} 16. Kxf1 {[%clk 0:02:04]}  Ng4 {[%clk 0:01:11]} 17. f3 {[%clk 0:01:52]}  Qf6 {[%clk 0:00:45]} 18. Qg2 {[%clk 0:01:18]}  Nxh2+ {[%clk 0:00:36]} 19. Qxh2 {[%clk 0:01:19]}  Qxf3+ {[%clk 0:00:36]} 20. Ke1 {[%clk 0:01:19]}  Rxg3 {[%clk 0:00:37]} 21. Ne2 {[%clk 0:01:20]}  Rg2 {[%clk 0:00:32]} 0-1


[Site "https://www.chess.com"]

[Event "Titled Tuesday Blitz February 21 Early 2023"]
[White "Weetik, Vjacheslav"]
[Black "Uzcategui Rodriguez, Alejandro"]
[WhiteFideId "4153472"]
[BlackFideId "3903400"]
[WhiteElo "2423"]
[BlackElo "2255"]
[Result "1-0"]
[Round "05"]
[TimeControl "180+2"]
[Date "2023.02.21"]
[WhiteClock "0:00:10"]
[BlackClock "0:00:25"]

1. d4 {[%clk 0:02:59]}  Nf6 {[%clk 0:02:48]} 2. c4 {[%clk 0:02:59]}  e6 {[%clk 0:02:47]} 3. g3 {[%clk 0:02:59]}  d5 {[%clk 0:02:44]} 4. Nf3 {[%clk 0:02:58]}  Be7 {[%clk 0:02:42]} 5. Bg2 {[%clk 0:02:59]}  O-O {[%clk 0:02:39]} 6. O-O {[%clk 0:02:59]}  dxc4 {[%clk 0:02:39]} 7. Qc2 {[%clk 0:02:58]}  a6 {[%clk 0:02:39]} 8. a4 {[%clk 0:02:57]}  Bd7 {[%clk 0:02:38]} 9. Qxc4 {[%clk 0:02:57]}  Bc6 {[%clk 0:02:32]} 10. Bf4 {[%clk 0:02:56]}  Nbd7 {[%clk 0:01:55]} 11. a5 {[%clk 0:02:46]}  Rc8 {[%clk 0:01:53]} 12. Nc3 {[%clk 0:02:41]}  Bd6 {[%clk 0:01:53]} 13. Rfd1 {[%clk 0:02:25]}  Re8 {[%clk 0:01:41]} 14. Ne5 {[%clk 0:02:19]}  Bxg2 {[%clk 0:01:40]} 15. Kxg2 {[%clk 0:02:19]}  Bf8 {[%clk 0:01:26]} 16. e4 {[%clk 0:01:55]}  Qe7 {[%clk 0:01:23]} 17. Nf3 {[%clk 0:01:41]}  Red8 {[%clk 0:01:14]} 18. e5 {[%clk 0:01:32]}  Ne8 {[%clk 0:01:13]} 19. d5 {[%clk 0:01:28]}  exd5 {[%clk 0:01:13]} 20. Nxd5 {[%clk 0:01:27]}  Qe6 {[%clk 0:01:13]} 21. Ng5 {[%clk 0:01:21]}  Qg6 {[%clk 0:01:09]} 22. e6 {[%clk 0:00:37]}  fxe6 {[%clk 0:01:08]} 23. Ne3 {[%clk 0:00:36]}  Nd6 {[%clk 0:00:55]} 24. Qxe6+ {[%clk 0:00:34]}  Qxe6 {[%clk 0:00:54]} 25. Nxe6 {[%clk 0:00:35]}  Re8 {[%clk 0:00:55]} 26. Nxf8 {[%clk 0:00:26]}  Nxf8 {[%clk 0:00:53]} 27. Bxd6 {[%clk 0:00:26]}  cxd6 {[%clk 0:00:53]} 28. Rxd6 {[%clk 0:00:27]}  Red8 {[%clk 0:00:50]} 29. Rxd8 {[%clk 0:00:23]}  Rxd8 {[%clk 0:00:51]} 30. Rc1 {[%clk 0:00:23]}  Rd2 {[%clk 0:00:50]} 31. b4 {[%clk 0:00:19]}  Rb2 {[%clk 0:00:50]} 32. Nd5 {[%clk 0:00:18]}  Ne6 {[%clk 0:00:47]} 33. Rc8+ {[%clk 0:00:17]}  Kf7 {[%clk 0:00:47]} 34. Rb8 {[%clk 0:00:17]}  Ng5 {[%clk 0:00:44]} 35. Rxb7+ {[%clk 0:00:17]}  Kg6 {[%clk 0:00:42]} 36. Rb6+ {[%clk 0:00:15]}  Kf7 {[%clk 0:00:41]} 37. Rxa6 {[%clk 0:00:09]}  Ne4 {[%clk 0:00:42]} 38. Kf3 {[%clk 0:00:09]}  Nxf2 {[%clk 0:00:41]} 39. Rb6 {[%clk 0:00:08]}  Nd3 {[%clk 0:00:40]} 40. a6 {[%clk 0:00:06]}  Ne5+ {[%clk 0:00:39]} 41. Ke4 {[%clk 0:00:06]}  Nc4 {[%clk 0:00:33]} 42. Rb7+ {[%clk 0:00:06]}  Ke6 {[%clk 0:00:34]} 43. a7 {[%clk 0:00:06]}  Nd6+ {[%clk 0:00:34]} 44. Kd4 {[%clk 0:00:05]}  Ra2 {[%clk 0:00:32]} 45. Nc7+ {[%clk 0:00:05]}  Kd7 {[%clk 0:00:32]} 46. a8=Q {[%clk 0:00:05]}  Rxa8 {[%clk 0:00:31]} 47. Nxa8+ {[%clk 0:00:06]}  Nxb7 {[%clk 0:00:32]} 48. Ke5 {[%clk 0:00:06]}  Nd8 {[%clk 0:00:29]} 49. b5 {[%clk 0:00:05]}  Nf7+ {[%clk 0:00:28]} 50. Kd5 {[%clk 0:00:05]}  Ng5 {[%clk 0:00:26]} 51. Nb6+ {[%clk 0:00:06]}  Kc7 {[%clk 0:00:26]} 52. Nc4 {[%clk 0:00:07]}  Nf3 {[%clk 0:00:26]} 53. h4 {[%clk 0:00:07]}  Nh2 {[%clk 0:00:26]} 54. Ke6 {[%clk 0:00:06]}  Nf1 {[%clk 0:00:26]} 55. g4 {[%clk 0:00:07]}  Nh2 {[%clk 0:00:26]} 56. g5 {[%clk 0:00:07]}  Nf3 {[%clk 0:00:26]} 57. Kf7 {[%clk 0:00:07]}  Nxh4 {[%clk 0:00:26]} 58. Kxg7 {[%clk 0:00:08]}  Nf3 {[%clk 0:00:26]} 59. Kh6 {[%clk 0:00:08]}  Kb7 {[%clk 0:00:26]} 60. Kh5 {[%clk 0:00:07]}  Kc7 {[%clk 0:00:25]} 61. Kg4 {[%clk 0:00:07]}  Nd4 {[%clk 0:00:26]} 62. b6+ {[%clk 0:00:07]}  Kb7 {[%clk 0:00:26]} 63. Kf4 {[%clk 0:00:08]}  Kc6 {[%clk 0:00:24]} 64. Ke5 {[%clk 0:00:08]}  Nf3+ {[%clk 0:00:23]} 65. Kf6 {[%clk 0:00:08]}  Kb7 {[%clk 0:00:23]} 66. Kf5 {[%clk 0:00:07]}  Kc6 {[%clk 0:00:23]} 67. Ne5+ {[%clk 0:00:07]}  Nxe5 {[%clk 0:00:20]} 68. Kxe5 {[%clk 0:00:07]}  Kxb6 {[%clk 0:00:21]} 69. Kf6 {[%clk 0:00:08]}  Kc7 {[%clk 0:00:22]} 70. Kg7 {[%clk 0:00:09]}  Kd7 {[%clk 0:00:23]} 71. Kxh7 {[%clk 0:00:09]}  Ke7 {[%clk 0:00:23]} 72. g6 {[%clk 0:00:10]}  Kf6 {[%clk 0:00:24]} 73. g7 {[%clk 0:00:10]}  Kf7 {[%clk 0:00:25]} 74. g8=Q+ {[%clk 0:00:11]}  Kf6 {[%clk 0:00:26]} 75. Qg6+ {[%clk 0:00:11]}  Ke7 {[%clk 0:00:25]} 76. Kg7 {[%clk 0:00:10]} 1-0


[Site "https://www.chess.com"]

[Event "Titled Tuesday Blitz February 21 Early 2023"]
[White "Tsyhanchuk, Stanislav"]
[Black "Berkes, Ferenc"]
[WhiteFideId "13505130"]
[BlackFideId "718572"]
[WhiteElo "2273"]
[BlackElo "2621"]
[Result "1-0"]
[Round "05"]
[TimeControl "180+2"]
[Date "2023.02.21"]
[WhiteClock "0:00:21"]
[BlackClock "0:00:10"]

1. c4 {[%clk 0:03:00]}  Nf6 {[%clk 0:02:58]} 2. Nc3 {[%clk 0:03:00]}  g6 {[%clk 0:02:58]} 3. e4 {[%clk 0:02:59]}  d6 {[%clk 0:02:59]} 4. d4 {[%clk 0:02:59]}  Bg7 {[%clk 0:02:59]} 5. f4 {[%clk 0:02:59]}  O-O {[%clk 0:02:59]} 6. Nf3 {[%clk 0:02:59]}  c5 {[%clk 0:02:59]} 7. d5 {[%clk 0:03:00]}  b5 {[%clk 0:02:57]} 8. cxb5 {[%clk 0:02:59]}  a6 {[%clk 0:02:57]} 9. a4 {[%clk 0:02:59]}  Qa5 {[%clk 0:02:55]} 10. Bd2 {[%clk 0:02:47]}  axb5 {[%clk 0:02:53]} 11. Bxb5 {[%clk 0:02:46]}  Qb4 {[%clk 0:02:39]} 12. Qc2 {[%clk 0:02:17]}  c4 {[%clk 0:02:06]} 13. O-O {[%clk 0:02:11]}  Qc5+ {[%clk 0:02:05]} 14. Kh1 {[%clk 0:02:10]}  Ng4 {[%clk 0:02:00]} 15. Qc1 {[%clk 0:01:40]}  Ba6 {[%clk 0:01:40]} 16. Bxa6 {[%clk 0:01:34]}  Nxa6 {[%clk 0:01:39]} 17. h3 {[%clk 0:01:34]}  Nf2+ {[%clk 0:01:36]} 18. Rxf2 {[%clk 0:01:34]}  Qxf2 {[%clk 0:01:36]} 19. Be3 {[%clk 0:01:27]}  Qg3 {[%clk 0:01:34]} 20. Ne2 {[%clk 0:01:25]}  Qxf3 {[%clk 0:01:32]} 21. gxf3 {[%clk 0:01:24]}  Rfb8 {[%clk 0:01:30]} 22. Bd4 {[%clk 0:01:22]}  Nc5 {[%clk 0:01:28]} 23. Bxc5 {[%clk 0:01:13]}  Bxb2 {[%clk 0:01:25]} 24. Qd1 {[%clk 0:01:04]}  Bxa1 {[%clk 0:01:21]} 25. Qxa1 {[%clk 0:01:04]}  dxc5 {[%clk 0:01:21]} 26. Nc3 {[%clk 0:01:04]}  Rb3 {[%clk 0:01:20]} 27. a5 {[%clk 0:01:00]}  Ra6 {[%clk 0:01:16]} 28. e5 {[%clk 0:00:59]}  h5 {[%clk 0:01:15]} 29. Kg2 {[%clk 0:00:58]}  h4 {[%clk 0:01:15]} 30. Kf2 {[%clk 0:00:58]}  Kh7 {[%clk 0:01:12]} 31. Ke2 {[%clk 0:00:57]}  Rb4 {[%clk 0:01:09]} 32. Kd2 {[%clk 0:00:56]}  Rb3 {[%clk 0:01:09]} 33. Kc2 {[%clk 0:00:56]}  Rb4 {[%clk 0:01:09]} 34. Qa2 {[%clk 0:00:52]}  Ra7 {[%clk 0:01:05]} 35. f5 {[%clk 0:00:49]}  gxf5 {[%clk 0:01:03]} 36. f4 {[%clk 0:00:49]}  Ra6 {[%clk 0:00:59]} 37. Qa1 {[%clk 0:00:49]}  Rg6 {[%clk 0:00:56]} 38. a6 {[%clk 0:00:46]}  Rg2+ {[%clk 0:00:56]} 39. Kc1 {[%clk 0:00:45]}  Rg1+ {[%clk 0:00:54]} 40. Nd1 {[%clk 0:00:45]}  Rb3 {[%clk 0:00:49]} 41. a7 {[%clk 0:00:37]}  Rd3 {[%clk 0:00:48]} 42. Qa4 {[%clk 0:00:32]}  Rc3+ {[%clk 0:00:47]} 43. Kb2 {[%clk 0:00:29]}  Rd3 {[%clk 0:00:44]} 44. a8=Q {[%clk 0:00:29]}  Rgxd1 {[%clk 0:00:40]} 45. Qxd1 {[%clk 0:00:22]}  Rxd1 {[%clk 0:00:40]} 46. Qe8 {[%clk 0:00:22]}  Rxd5 {[%clk 0:00:35]} 47. Qxf7+ {[%clk 0:00:22]}  Kh6 {[%clk 0:00:11]} 48. Qxd5 {[%clk 0:00:23]}  c3+ {[%clk 0:00:10]} 49. Kxc3 {[%clk 0:00:23]}  c4 {[%clk 0:00:10]} 50. Kxc4 {[%clk 0:00:21]} 1-0


[Site "https://www.chess.com"]

[Event "Titled Tuesday Blitz February 21 Early 2023"]
[White "Kotepalli, Sai Nirupama"]
[Black "Yurasova, Daria"]
[WhiteFideId "5039444"]
[BlackFideId "34146919"]
[WhiteElo "1910"]
[BlackElo "2095"]
[Result "0-1"]
[Round "05"]
[TimeControl "180+2"]
[Date "2023.02.21"]
[WhiteClock "0:00:16"]
[BlackClock "0:01:35"]

1. e4 {[%clk 0:01:26]}  e5 {[%clk 0:02:58]} 2. d3 {[%clk 0:01:26]}  Nc6 {[%clk 0:02:57]} 3. Nf3 {[%clk 0:01:26]}  Nf6 {[%clk 0:02:58]} 4. g3 {[%clk 0:01:27]}  Bc5 {[%clk 0:02:58]} 5. Bg2 {[%clk 0:01:27]}  d6 {[%clk 0:02:59]} 6. O-O {[%clk 0:01:27]}  a6 {[%clk 0:02:59]} 7. c3 {[%clk 0:01:28]}  Bb6 {[%clk 0:02:58]} 8. Nbd2 {[%clk 0:01:28]}  Bg4 {[%clk 0:02:53]} 9. Nc4 {[%clk 0:01:27]}  Ba7 {[%clk 0:02:51]} 10. h3 {[%clk 0:01:25]}  Bh5 {[%clk 0:02:51]} 11. Be3 {[%clk 0:01:22]}  O-O {[%clk 0:02:50]} 12. Bxa7 {[%clk 0:01:21]}  Nxa7 {[%clk 0:02:50]} 13. Ne3 {[%clk 0:01:19]}  Bg6 {[%clk 0:02:46]} 14. Nh4 {[%clk 0:01:18]}  Nc6 {[%clk 0:02:46]} 15. Nhf5 {[%clk 0:01:13]}  Bxf5 {[%clk 0:02:36]} 16. Nxf5 {[%clk 0:01:11]}  Ne7 {[%clk 0:02:36]} 17. g4 {[%clk 0:01:08]}  Nxf5 {[%clk 0:02:34]} 18. exf5 {[%clk 0:01:07]}  c6 {[%clk 0:02:30]} 19. Re1 {[%clk 0:01:03]}  Nd5 {[%clk 0:02:30]} 20. Bxd5 {[%clk 0:01:01]}  cxd5 {[%clk 0:02:31]} 21. Qb3 {[%clk 0:00:59]}  Qh4 {[%clk 0:02:21]} 22. Kg2 {[%clk 0:00:57]}  h5 {[%clk 0:02:21]} 23. f3 {[%clk 0:00:48]}  d4 {[%clk 0:02:12]} 24. cxd4 {[%clk 0:00:38]}  exd4 {[%clk 0:02:13]} 25. Re4 {[%clk 0:00:33]}  Rfe8 {[%clk 0:01:50]} 26. Qd5 {[%clk 0:00:26]}  Rac8 {[%clk 0:01:42]} 27. Rae1 {[%clk 0:00:16]}  Rc2+ {[%clk 0:01:35]} 0-1


[Site "https://www.chess.com"]